Workbook

Sheet Лист3
A1: Город | B1: Подразделение | C1: Точка обслуживания | D1: Объем май, тн | E1: Объем июнь, тн | F1: Изменение
A2: Казань | B2: ОП1 | C2: ТО1 | D2: 5.41 | E2: 5.72 | F2: =+E2-D2 -> 0.31
A3: Казань | B3: ОП1 | C3: ТО2 | D3: 4.09 | E3: 4.06 | F3: =+E3-D3 -> -0.03
A4: Казань | B4: ОП1 | C4: ТО3 | D4: 5.15 | E4: 5.06 | F4: =+E4-D4 -> -0.09
A5: Казань | B5: ОП2 | C5: ТО4 | D5: 28.07 | E5: 27.36 | F5: =+E5-D5 -> -0.71
A6: Казань | B6: ОП2 | C6: ТО5 | D6: 7.65 | E6: 7.97 | F6: =+E6-D6 -> 0.32
A7: Казань | B7: ОП2 | C7: ТО6 | D7: 5.26 | E7: 4.93 | F7: =+E7-D7 -> -0.33
A8: Казань | B8: ОП2 | C8: ТО7 | D8: 11.27 | E8: 11.7 | F8: =+E8-D8 -> 0.43
A9: Казань | B9: ОП3 | C9: ТО8 | D9: 5.58 | E9: 6.26 | F9: =+E9-D9 -> 0.68
A10: Казань | B10: ОП3 | C10: ТО9 | D10: 7.96 | E10: 7.82 | F10: =+E10-D10 -> -0.14
A11: Москва | B11: ОП4 | C11: ТО10 | D11: 4.69 | E11: 5.78 | F11: =+E11-D11 -> 1.09
A12: Москва | B12: ОП4 | C12: ТО11 | D12: 10.13 | E12: 10.66 | F12: =+E12-D12 -> 0.53
A13: Москва | B13: ОП4 | C13: ТО12 | D13: 4.39 | E13: 4.38 | F13: =+E13-D13 -> -0.01
A14: Москва | B14: ОП4 | C14: ТО13 | D14: 14.01 | E14: 13.14 | F14: =+E14-D14 -> -0.87
A15: Москва | B15: ОП5 | C15: ТО14 | D15: 6.72 | E15: 5.92 | F15: =+E15-D15 -> -0.8
A16: Москва | B16: ОП5 | C16: ТО15 | D16: 5 | E16: 5.12 | F16: =+E16-D16 -> 0.12
A17: Москва | B17: ОП5 | C17: ТО16 | D17: 13.06 | E17: 13.5 | F17: =+E17-D17 -> 0.44
A18: Москва | B18: ОП5 | C18: ТО17 | D18: 7.74 | E18: 7.24 | F18: =+E18-D18 -> -0.5
A19: Москва | B19: ОП5 | C19: ТО18 | D19: 5.65 | E19: 5.68 | F19: =+E19-D19 -> 0.03
A20: Москва | B20: ОП5 | C20: ТО19 | D20: 11.49 | E20: 11.11 | F20: =+E20-D20 -> -0.38
A21: Москва | B21: ОП5 | C21: ТО20 | D21: 14.13 | E21: 13.85 | F21: =+E21-D21 -> -0.28
A22: Москва | B22: ОП5 | C22: ТО21 | D22: 5.77 | E22: 5.63 | F22: =+E22-D22 -> -0.14
A23: Москва | B23: ОП6 | C23: ТО22 | D23: 5.13 | E23: 4.65 | F23: =+E23-D23 -> -0.48
A24: Москва | B24: ОП6 | C24: ТО23 | D24: 5.48 | E24: 4.5 | F24: =+E24-D24 -> -0.98
A25: Москва | B25: ОП6 | C25: ТО24 | D25: 2.43 | E25: 2.19 | F25: =+E25-D25 -> -0.24
A26: Москва | B26: ОП6 | C26: ТО25 | D26: 6.3 | E26: 6.66 | F26: =+E26-D26 -> 0.36
